Cogmind - Beta 14 @@@ ROGUE MODE // 2025.03.11 @ 09:00:48 Player: Skergy Result: Destroyed by S-10 Pest with Light Assault Rifle Performance ------------- Evolutions (0) 0 Regions Visited (2) 400 Robots Destroyed (19) 95 Value Destroyed (461) 461 Prototype IDs (0) 0 Alien Tech Used (0) 0 Bonus (0) 0 TOTAL SCORE: 956 Bonus ------- None Cogmind --------- Core Integrity 0/250 Matter 275/300 Energy 228/250 System Corruption 0% Temperature Cool (0) Movement Treading (320) Ox2 Location -10/Subcaves Parts ------- > --- POWER (1) -------- Ion Engine > --- PROPULSION (2) --- Light Treads Light Treads > --- UTILITY (2) ------ Huge Storage Unit Medium Armor Plating > --- WEAPON (2) ------- Beam Rifle Beam Rifle > --- INVENTORY (25) --- Light Ion Engine Light Treads Aluminum Leg Aluminum Leg Aluminum Leg Makeshift Leg Wheel Compact Wheel Subdweller Monowheel Subdweller Monowheel Medium Matter Pod (84) Visual Processing Unit Signal Interpreter Medium Armor Plating Makeshift Light Armor Plating Makeshift Kinetic Plating Scrap Shield Medium Laser Subdweller Beam Cannon Subdweller Machine Gun Makeshift Sword Peak State ------------ > --- POWER ------------ Light Nuclear Core > --- PROPULSION ------- Light Treads Light Treads > --- UTILITY ---------- Huge Storage Unit Makeshift Light Armor Plating > --- WEAPON ----------- Barrage Gun Makeshift Sword > --- INVENTORY -------- Ion Engine Light Ion Engine Light Treads Light Treads Aluminum Leg Aluminum Leg Aluminum Leg Makeshift Leg Wheel Compact Wheel Subdweller Monowheel Medium Matter Pod Visual Processing Unit Signal Interpreter Medium Armor Plating Medium Armor Plating Makeshift Kinetic Plating Scrap Shield Medium Laser Beam Rifle Beam Rifle Subdweller Beam Cannon Subdweller Machine Gun Grenade Launcher [Rating: 21] Favorites ----------- Power Light Nuclear Core Engine Ion Engine Power Core Light Nuclear Core Propulsion Light Treads Treads Light Treads Leg Aluminum Leg Utility Huge Storage Unit Storage Huge Storage Unit Protection Medium Armor Plating Weapon Beam Rifle Energy Gun Beam Rifle Ballistic Gun Assault Rifle Launcher Grenade Launcher Special Weapon Mining Laser Slashing Weapon Makeshift Sword Build | -11 -10 -10 ------- Run | Yrd Mat Sub Slots Evolved . | . . . Power . | . . . Propulsion . | . . . Utility . | . . . Weapon . | . . . Parts Attached 24 | 6 6 12 Power 3 | 1 1 1 Engine 2 | 1 . 1 Core 1 | . 1 . Reactor . | . . . Propulsion 5 | 2 2 1 Treads 3 | . 2 1 Leg 2 | 2 . . Wheel . | . . . Hover . | . . . Flight . | . . . Utility 5 | 1 2 2 Device . | . . . Storage 2 | 1 1 . Processor . | . . . Hackware . | . . . Protection 3 | . 1 2 Artifact . | . . . Weapon 11 | 2 1 8 Energy Gun 5 | 1 1 3 Energy Cannon . | . . . Ballistic Gun 2 | 1 . 1 Ballistic Cannon . | . . . Launcher 1 | . . 1 Special Weapon 1 | . . 1 Impact Weapon . | . . . Slashing Weapon 2 | . . 2 Piercing Weapon . | . . . Special Melee Weapon . | . . . Unidentified Prototypes . | . . . Parts Lost 4 | . . 4 Power 1 | . . 1 Propulsion 1 | . . 1 Utility . | . . . Weapon 2 | . . 2 Highest Loss Streak 2 | . . 2 To Critical Strikes . | . . . Average Slot Usage (%) 99 | . 98 99 Engine 5 | . 3 7 Core 7 | . 10 5 Treads 27 | . 27 27 Storage 14 | . 14 14 Protection 13 | . 12 14 Energy Gun 14 | . 14 14 Ballistic Gun 8 | . 14 5 Launcher 3 | . . 6 Peak Build Rating 21 | 6 13 21 Average Rating 13 | 3 11 14 On Entrance 6 | . 6 13 Naked Turns . | . . . Heaviest Build 98 | 14 97 98 Greatest Support 40 | 20 40 40 Greatest Overweight (x) 2 | 2 2 2 Average Overweight (x) 1 | . 1 2 Largest Inventory Capacity 25 | 8 25 25 Average Capacity 24 | 6 24 25 Most Carried 25 | 6 23 25 Average Carried 21 | 4 19 23 Final Capacity 25 | 8 25 25 Final Carried 23 | 6 23 22 Class Distribution -------------------- 100% | Mutant Dominant Class ---------------- Mutant | -10/Materials Mutant | -10/Subcaves Resources | -11 -10 -10 ----------- Run | Yrd Mat Sub Matter Collected 682 | 195 222 265 Remotely . | . . . Salvage Created 504 | . 324 180 Parts 41 | . 28 13 Haulers Intercepted . | . . . Recyclers Shooed 1 | . 1 . Parts Field Recycled . | . . . Retrieved Matter . | . . . Parts Self-Destructed 15 | . . 15 Prevented . | . . . Kills | -11 -10 -10 ------- Run | Yrd Mat Sub Combat Hostiles Destroyed 16 | . 10 6 Guns 12 | . 10 2 AOE 4 | . . 4 Classes Destroyed 4 | . 3 1 Watcher 3 | . 3 . Swarmer 7 | . 5 2 Grunt 5 | . 5 . Subdweller 4 | . . 4 Best Kill Streak 4 | . 4 2 Combat Bots Only 3 | . 3 2 Max Kills in Single Turn 2 | . 2 2 Gunslinging 1 | . 1 . Exploded 2 | . . 2 Melee . | . . . Uniques/NPCs Destroyed . | . . . Combat | -11 -10 -10 -------- Run | Yrd Mat Sub Hostile Shots Fired 152 | . 78 74 Missed 43 | . 27 16 Damage Taken 1257 | . 467 790 Core 251 | . 60 191 Absorbed by Shields . | . . . Core Remaining (%) 100 | 100 . . Volleys Fired 66 | . 37 29 Largest 2 | . 2 2 Hottest 112 | . 76 112 Shots Fired 103 | . 56 47 Gun 96 | . 56 40 Cannon . | . . . Launcher 4 | . . 4 Special 3 | . . 3 Kinetic 50 | . 37 13 Thermal 49 | . 19 30 Explosive 4 | . . 4 Electromagnetic . | . . . Robot Hit Streak 15 | . 6 15 Robot Miss Streak 4 | . 4 2 Penetration Max . | . . . Secondary Targets 3 | . 3 . Max Gunslinging Chain 1 | . 1 . Shots Hit Robots 69 | . 34 35 Core Hits 26 | . 17 9 Critical Kills . | . . . Critical Parts Destroyed . | . . . Critical Strikes 3 | . 2 1 Burn 3 | . 2 1 Melee Attacks 4 | . . 4 Impact . | . . . Slashing 4 | . . 4 Piercing . | . . . Sneak Attacks . | . . . Combat Hostiles . | . . . Follow-up Attacks . | . . . Damage Inflicted 1335 | . 471 864 Guns 977 | . 471 506 Cannons . | . . . Explosions 358 | . . 358 Melee . | . . . Ramming . | . . . Kinetic 501 | . 297 204 Thermal 476 | . 174 302 Explosive 358 | . . 358 Electromagnetic . | . . . Impact . | . . . Slashing . | . . . Piercing . | . . . Highest Corruption . | . . . Average Corruption . | . . . Corruption Purged . | . . . Corruption Blocked . | . . . Overload Shots . | . . . Overflow Damage 32 | . . 32 Projectiles . | . . . Explosions 32 | . . 32 Melee . | . . . Knockbacks . | . . . Impact . | . . . Kinetic . | . . . Secondary . | . . . Self-Inflicted Damage . | . . . Shots . | . . . Rammed . | . . . Targets Rammed . | . . . Kicked . | . . . Crushed . | . . . Highest Temperature 267 | . 267 14 Average Temperature 84 | . 100 5 Received Heat Transfer 171 | . 123 48 Effects 1 | . 1 . Interference 1 | . 1 . Siege Activations . | . . . Robots Corrupted . | . . . Combat Hostiles . | . . . Parts Fried . | . . . Impact Corruptions . | . . . Robots Melted . | . . . Combat Hostiles . | . . . Parts Melted 2 | . . 2 Heat Transferred 1443 | . 592 851 Parts Sabotaged . | . . . Parts Stolen . | . . . Parts Stripped . | . . . Power Chain Reactions . | . . . Alert | -11 -10 -10 ------- Run | Yrd Mat Sub Peak Influence 112 | . 112 . Initial . | . . . Average 23 | . 24 . Maximum Alert Level . | . . . Low Security (%) 100 | 100 100 . Level 1 . | . . . Level 2 . | . . . Level 3 . | . . . Level 4 . | . . . Level 5 . | . . . High Security . | . . . Max Security . | . . . Squads Dispatched 2 | . 2 . Investigation . | . . . Extermination . | . . . Reinforcement 2 | . 2 . Assault . | . . . Garrison . | . . . Intercept . | . . . Searches Triggered . | . . . Construction Impeded . | . . . Haulers Reinforced . | . . . Active Scanning Responses . | . . . Cargo Convoy Interrupts . | . . . Stealth | -11 -10 -10 --------- Run | Yrd Mat Sub Distress Signals . | . . . Communications Jammed . | . . . Distress Signals . | . . . Times Spotted 23 | . 14 9 Peak Tracking Total 6 | . 3 6 Tactical Retreats 1 | . . 1 Traps | -11 -10 -10 ------- Run | Yrd Mat Sub Traps Triggered . | . . . Indirectly . | . . . Trap Hack Attempts . | . . . Triggered . | . . . Disarmed . | . . . Reprogrammed . | . . . Reused . | . . . Traps Extracted . | . . . Installed . | . . . Triggered . | . . . Machines | -11 -10 -10 ---------- Run | Yrd Mat Sub Machines Disabled . | . . . Max in Single Turn . | . . . Machines Repaired . | . . . Machines Dismantled . | . . . Machines Sabotaged . | . . . Overloaded Fab Kills . | . . . Hacking | -11 -10 -10 --------- Run | Yrd Mat Sub Machines Accessed 7 | . 5 2 Terminals 5 | . 5 . Fabricators . | . . . Repair Stations . | . . . Recycling Units . | . . . Scanalyzers . | . . . Garrison Access . | . . . Total Hacks 12 | . 10 2 Successful 3 | . 1 2 Failed 9 | . 9 . Catastrophic 1 | . 1 . Database Lockouts . | . . . Manual 10 | . 10 . Terminals 10 | . 10 . Fabricators . | . . . Repair Stations . | . . . Recycling Units . | . . . Scanalyzers . | . . . Garrison Access . | . . . Terminal Hacks 2 | . . 2 Record 1 | . . 1 Open Door 1 | . . 1 Fabricator Hacks . | . . . Repair Station Hacks . | . . . Recycling Unit Hacks . | . . . Scanalyzer . | . . . Garrison Access Hacks . | . . . Unauthorized Hacks 1 | . 1 . Terminals 1 | . 1 . Botnet 1 | . 1 . Fabricators . | . . . Repair Stations . | . . . Recycling Units . | . . . Scanalyzers . | . . . Garrison Access . | . . . Data Cores Recovered . | . . . Used . | . . . Hacking Detections 5 | . 5 . Full Trace Events . | . . . Feedback Events . | . . . Feedback Blocked . | . . . Robot Schematics Acquired . | . . . Robots Built . | . . . Authchips . | . . . Time . | . . . Total Robot Build Rating . | . . . Part Schematics Acquired . | . . . Parts Built . | . . . Authchips . | . . . Time . | . . . Total Part Build Rating . | . . . Parts Repaired . | . . . Time . | . . . Parts Recycled . | . . . Recycled Matter . | . . . Retrieved Matter . | . . . Retrieved Components . | . . . Parts Scanalyzed . | . . . Part Schematics Acquired . | . . . Parts Damaged . | . . . Bothacking | -11 -10 -10 ------------ Run | Yrd Mat Sub Used RIF Installer . | . . . Robots Hacked . | . . . Non-combat . | . . . Combat . | . . . Robot Hacks Applied . | . . . Relay Couplers Released . | . . . Fabnet Peak Effective % . | . . . Robots Rewired . | . . . Allies Hacked . | . . . Hacks Repelled . | . . . Allies | -11 -10 -10 -------- Run | Yrd Mat Sub Total Allies . | . . . Largest Group . | . . . Highest-Rated Group . | . . . Highest-Rated Ally . | . . . Total Orders . | . . . Ally Attacks . | . . . Total Damage . | . . . Kills . | . . . Allies Corrupted . | . . . Allies Melted . | . . . Intel | -11 -10 -10 ------- Run | Yrd Mat Sub Robot Analysis Total . | . . . Derelict Logs Recovered . | . . . Drone Launches . | . . . Drone Recoveries . | . . . Exploration | -11 -10 -10 ------------- Run | Yrd Mat Sub Turns Passed 4569 | 61 1850 2658 Spaces Moved 1164 | 39 337 788 Core 12 | 12 . . Treads 1117 | . 329 788 Legs 35 | 27 8 . Wheels . | . . . Hover . | . . . Flight . | . . . Fastest Speed 50 | 50 120 320 Average Speed 311 | 120 315 320 Slowest Speed 320 | 190 320 320 Overloaded Moves . | . . . Propulsion Burnouts . | . . . Robots Hopped . | . . . Cave-ins Triggered . | . . . Exploration Rate (%) 37 | 3 61 49 Regions Visited 2 Branch Regions 1 Pre-discovered Areas 1 | . . 1 Known Exits Taken . | . . . Unknown Exits Taken 2 | 1 1 . Scrap Searched 2 | . . 2 Spaces Dug . | . . . Terrain Destroyed 19 | . . 19 Melee . | . . . Projectile . | . . . AOE 19 | . . 19 Terrain Rammed . | . . . Walls Destroyed . | . . . Machines Disabled . | . . . Actions | -11 -10 -10 --------- Run | Yrd Mat Sub Total 1992 | 50 1068 874 Wait 694 | . 673 21 Move 1162 | 38 336 788 Hop . | . . . Pick Up 30 | 6 14 10 Fast Attach 9 | 6 3 . Attach 5 | . . 5 Detach 3 | . 2 1 Swap 10 | . 3 7 Drop 9 | . . 9 Fire 66 | . 37 29 Melee 4 | . . 4 Ram . | . . . Kick . | . . . Crush . | . . . Escape Stasis . | . . . Rewire . | . . . Trap . | . . . Miscellaneous . | . . . Route ------- -11/Scrapyard -10/Materials (discovered 4 exits: [*Mat] / [*Min x2] / *Sub) -10/Subcaves (discovered 1 exit: [*Mat]) History --------- Turn | Location | Event 6 | -11/Scrapyard | Discovered new exit (range 15) 62 | -11/Scrapyard | Entered Materials 308 | -10/Materials | Build established: Mutant 431 | -10/Materials | Discovered new exit (range 16) 667 | -10/Materials | Discovered new exit (range 9) 942 | -10/Materials | Discovered new exit (range 7) 1892 | -10/Materials | Discovered new exit (range 6) 1912 | -10/Materials | Entered Subcaves 1976 | -10/Subcaves | Discovered new exit (range 14) 2068 | -10/Subcaves | Shifting Twisted Machinery released Sub. Power Source 2105 | -10/Subcaves | Shifting Twisted Machinery released Barrage Gun 2155 | -10/Subcaves | Learned location of Zion (-7) 2155 | -10/Subcaves | Met a Zionite searching for "candidates" 3050 | -10/Subcaves | Core integrity fell below 50% 3068 | -10/Subcaves | Core integrity fell below 20% 3429 | -10/Subcaves | A swath of the cavern ceiling suddenly collapsed 3857 | -10/Subcaves | A swath of the cavern ceiling suddenly collapsed 4570 | -10/Subcaves | Destroyed by S-10 Pest with Light Assault Rifle Last Messages --------------- A swath of the cavern ceiling suddenly collapses. 03513_ Acquired Sub. Monowheel. 03734_ QB-IAP(R) destroyed. 03737_ Destroyed Sub. Power Source. 03740_ XR-3AN(R) destroyed. 03743_ Subatomizers dissect the Disposable Heat Sink. 03756_ Subatomizers dissect the Sub. Power Source. 03768_ Subatomizers dissect the Sub. Power Source, destroying it. 03768_ Acquired 34 matter. 03770_ The unstable cave ceiling collapses. 03783_ Subatomizers dissect the Sub. Laser. A swath of the cavern ceiling suddenly collapses. 04405_ Acquired 14 matter. 04408_ Acquired 8 matter. 04450_ Acquired 14 matter. 04501_ Acquired 10 matter. 04555_ Destroyed Flight Unit. 04555_ S-10 Pest destroyed. 04555_ Grenade Launcher destroyed. 04558_ Subatomizers dissect the Lgt. Assault Rifle. Map ----- +----------------------------------------------------+ | ### #### ##??###???# #?# # | | #### #### ##?## #?## # | | #### ### ##??# # | | ## # ## ### ##### | | ## #?## ## | | ##### #?# ## ### | | #???# # # ## #?## #?? | | #???# ############### ### ##?## #?? | | #???##" #?????????????# #?# ##??# #?? | | #???#""# #?????????????# #?####??# ##? | | #???##&###?????????????# #?????# ### ## | | #?##""#??????"??????# #????## #?## # | | #???#!##???? ?????# #????## ###### ## | | #???"##???# ?????## #####?????##???# ## | | # #?????? ?????#####?????????????## # | | ?? ??????? ???????????????????????# | | # ????????# % ??????????????????????# | | "## ???????## *[% #?????????????????????## | | ##??? ???????? [ ##????????????????????# | | ##?????????????? ???????????????????## ## | | #???????????????? ##???????###???##### ## | | #?????????????????# ##?????## ##### # | | ??????????????????# #????## # | | #??????????????????# #???## ## ### ## # | | ?????????????????????# ###### #### ## ## ##?### | | ?????????????????????# s@ # # #?####??# #????? | | ?????????????????????# s #####???????# ##????? | | ?????????????????????#### # ##??????????## #?????? | | ????????????????????????#### ###????????## ##????? | | ???????????????????????????## #???????## #????? | | ????????????????????????????## ##???#### ### #???? | | ?????????????????????????????## ##### # ##?? #???? | | ??????????????????????????????## ## #"##???? ???? | | ??????????????????????????????# ## #????? #??? | | ??????????????????????????????##########??????#??? | | ?????????????????????????????????????????????????? | | ?????????????????????????????????????????????????? | | ?????????????????????????????????????????????????? | | ?????????????????????????????????????????????????? | | ?????????????????????????????????????????????????? | | ?????????????????????????????????????????????????? | | ?????????????????????????????????????????????????? | | ?????????????????????????????????????????????????? | | ?????????????????????????????????????????????????? | | ?????????????????????????????????????????????????? | | ?????????????????????????????????????????????????? | | ?????????????????????????????????????????????????? | | ?????????????????????????????????????????????????? | | ?????????????????????????????????????????????????? | | ?????????????????????????????????????????????????? | +----------------------------------------------------+ Best States ------------- Heat Dissipation 25 Energy Generation 14 Energy Capacity 250 Matter Stores 300 Matter Capacity 300 Sight Range 16 Terrain Scan Density 10 Armor Coverage 225 Evasion (%) 55 Recoil Reduction 2 Item Schematics ----------------- None Robot Schematics ------------------ None Fabricated ------------ Nothing Alien Tech Used ----------------- None Achievements -------------- None Challenges ------------ None Game ------ Seed HybridIonicAutocannon Manual? 0 Play Time 00:18:05 Cumulative 65.0 hours Start 2025.03.11 @ 08:39:39 End 2025.03.11 @ 09:00:48 Sessions 1 Manual Loads 0 Difficulty Rogue Special Mode None Game No. 65 Rogue 65 Adventurer 0 Explorer 0 Win Type - Total 2 Types 2/0/0/0/0/0/0/0/0 Lore% 38 Gallery% 43 Achievement% 39 Wizard Run 0 Options --------- Layout 0 ASCII 0 Keyboard 1 Movement Numpad Keybinds 0 Fullscreen 1 Font 24/Terminus Map View 76x50 Zoom Use 0% Tactical HUD 1 Map Filters NONE Filters NONE Steam 1 RUN: bad52cd7-5915-44f1-a56a-10d42cc49fe0